[Event "SS Manhem Chess Week GM and IM tournaments 2018"]
[Site "Molnlycke kulturhus, Biblioteksgatan 2, Molnlycke, Sweden"]
[Date "2018.08.13"]
[Round "4.9"]
[White "Nedilko, Vasily"]
[Black "Rydstrom, Tom"]
[Result "1/2-1/2"]
[TimeControl "90 minutes for 40 moves + 30 minutes for the rest of the game + 30 seconds per move from move one."]
[WhiteTitle "IM"]
[BlackTitle "FM"]
[WhiteFideId "14101459"]
[BlackFideId "1714830"]
[WhiteElo "2369"]
[BlackElo "2316"]

1. d4 {[%clk 01:30:57]} {[%emt 00:00:02]} g6 {[%clk 01:28:51]} {[%emt
00:02:04]} 2. c4 {[%clk 01:31:18]} {[%emt 00:00:15]} Bg7 {[%clk 01:29:15]}
{[%emt 00:00:05]} 3. Nc3 {[%clk 01:31:37]} {[%emt 00:00:12]} d6 {[%clk
01:29:42]} {[%emt 00:00:03]} 4. Nf3 {[%clk 01:31:58]} {[%emt 00:00:08]} Bg4
{[%clk 01:30:04]} {[%emt 00:00:09]} 5. g3 {[%clk 01:31:37]} {[%emt 00:00:51]}
Bxf3 {[%clk 01:29:55]} {[%emt 00:00:39]} 6. exf3 {[%clk 01:32:01]} {[%emt
00:00:06]} c6 {[%clk 01:30:20]} {[%emt 00:00:05]} 7. d5 {[%clk 01:31:32]}
{[%emt 00:00:59]} c5 {[%clk 01:28:11]} {[%emt 00:02:39]} 8. Bh3 {[%clk
01:22:28]} {[%emt 00:09:33]} Nd7 {[%clk 01:23:28]} {[%emt 00:05:14]} 9. O-O
{[%clk 01:22:32]} {[%emt 00:00:26]} Ngf6 {[%clk 01:20:48]} {[%emt 00:03:10]} 10.
Re1 {[%clk 01:20:35]} {[%emt 00:02:26]} O-O {[%clk 01:20:57]} {[%emt 00:00:22]}
11. f4 {[%clk 01:19:21]} {[%emt 00:01:45]} a6 {[%clk 01:18:21]} {[%emt
00:03:06]} 12. a4 {[%clk 01:11:20]} {[%emt 00:08:31]} b6 {[%clk 01:17:54]}
{[%emt 00:00:57]} 13. f5 {[%clk 01:01:38]} {[%emt 00:10:12]} Ra7 {[%clk
01:14:15]} {[%emt 00:04:10]} 14. fxg6 {[%clk 01:01:53]} {[%emt 00:00:14]} hxg6
{[%clk 01:14:34]} {[%emt 00:00:11]} 15. Bf4 {[%clk 00:50:59]} {[%emt 00:11:23]}
Rb7 {[%clk 01:09:19]} {[%emt 00:05:45]} 16. Qe2 {[%clk 00:48:58]} {[%emt
00:02:31]} Re8 {[%clk 01:08:35]} {[%emt 00:01:15]} 17. Rad1 {[%clk 00:49:20]}
{[%emt 00:00:08]} Nf8 {[%clk 01:00:06]} {[%emt 00:08:58]} 18. Qd2 {[%clk
00:33:54]} {[%emt 00:15:57]} N6d7 {[%clk 00:57:39]} {[%emt 00:02:57]} 19. Ne4
{[%clk 00:30:30]} {[%emt 00:03:54]} b5 {[%clk 00:56:10]} {[%emt 00:01:58]} 20.
cxb5 {[%clk 00:23:57]} {[%emt 00:07:04]} axb5 {[%clk 00:56:34]} {[%emt
00:00:05]} 21. a5 {[%clk 00:24:17]} {[%emt 00:00:11]} b4 {[%clk 00:50:57]}
{[%emt 00:06:07]} 22. Qe2 {[%clk 00:23:46]} {[%emt 00:01:01]} Nf6 {[%clk
00:51:16]} {[%emt 00:00:10]} 23. a6 {[%clk 00:22:02]} {[%emt 00:02:14]} Ra7
{[%clk 00:51:32]} {[%emt 00:00:14]} 24. Nxf6+ {[%clk 00:13:15]} {[%emt
00:09:16]} Bxf6 {[%clk 00:51:44]} {[%emt 00:00:18]} 25. Bf1 {[%clk 00:12:13]}
{[%emt 00:01:32]} Qb6 {[%clk 00:50:54]} {[%emt 00:01:20]} 26. h4 {[%clk
00:12:05]} {[%emt 00:00:38]} Rc7 {[%clk 00:40:44]} {[%emt 00:10:40]} 27. Be3
{[%clk 00:07:02]} {[%emt 00:05:33]} Ra8 {[%clk 00:34:00]} {[%emt 00:07:15]} 28.
Ra1 {[%clk 00:05:28]} {[%emt 00:02:03]} Qb8 {[%clk 00:34:16]} {[%emt 00:00:12]}
29. Rec1 {[%clk 00:05:04]} {[%emt 00:00:57]} Qc8 {[%clk 00:34:27]} {[%emt
00:00:19]} 30. Ra5 {[%clk 00:03:47]} {[%emt 00:01:47]} Qf5 {[%clk 00:26:22]}
{[%emt 00:08:34]} 31. b3 {[%clk 00:02:41]} {[%emt 00:01:37]} Rca7 {[%clk
00:25:31]} {[%emt 00:01:18]} 32. g4 {[%clk 00:01:30]} {[%emt 00:01:44]} Qc8
{[%clk 00:22:05]} {[%emt 00:03:55]} 33. g5 {[%clk 00:01:51]} {[%emt 00:00:10]}
Bg7 {[%clk 00:22:28]} {[%emt 00:00:07]} 34. h5 {[%clk 00:02:04]} {[%emt
00:00:18]} Qf5 {[%clk 00:22:30]} {[%emt 00:00:27]} 35. h6 {[%emt 00:01:24]} Bc3
{[%clk 00:20:04]} {[%emt 00:02:08]} 36. Qc4 {[%clk 00:01:53]} {[%emt 00:00:37]}
Nd7 {[%clk 00:19:15]} {[%emt 00:01:19]} 37. Qf4 {[%clk 00:01:20]} {[%emt
00:01:03]} Qxf4 {[%clk 00:17:32]} {[%emt 00:02:13]} 38. Bxf4 {[%clk 00:01:49]}
{[%emt 00:00:01]} f6 {[%clk 00:12:23]} {[%emt 00:05:39]} 39. gxf6 {[%clk
00:00:47]} {[%emt 00:01:32]} Nxf6 {[%clk 00:11:52]} {[%emt 00:01:01]} 40. Bc4
{[%clk 00:00:49]} {[%emt 00:00:28]} Kh7 {[%clk 00:11:46]} {[%emt 00:00:35]} 41.
Kg2 {[%clk 00:13:17]} {[%emt 00:18:02]} Rf8 {[%clk 00:37:47]} {[%emt 00:04:29]}
42. Be3 {[%clk 00:07:41]} {[%emt 00:06:06]} Ng4 {[%clk 00:32:53]} {[%emt
00:05:23]} 43. Rh1 {[%clk 00:07:23]} {[%emt 00:00:49]} Nxe3+ {[%clk 00:19:46]}
{[%emt 00:13:38]} 44. fxe3 {[%clk 00:07:47]} {[%emt 00:00:06]} Bd2 {[%clk
00:20:09]} {[%emt 00:00:07]} 45. Rh3 {[%clk 00:07:53]} {[%emt 00:00:24]} Rf5
{[%clk 00:19:55]} {[%emt 00:00:45]} 46. Ra2 {[%clk 00:07:00]} {[%emt 00:01:22]}
Bc3 {[%clk 00:17:51]} {[%emt 00:02:34]} 47. Rf2 {[%clk 00:05:42]} {[%emt
00:01:48]} Rg5+ {[%clk 00:14:26]} {[%emt 00:03:55]} 48. Kf1 {[%clk 00:06:07]}
{[%emt 00:00:04]} Bf6 {[%clk 00:14:54]} {[%emt 00:00:03]} 49. Rg2 {[%clk
00:04:47]} {[%emt 00:01:49]} Re5 {[%clk 00:06:51]} {[%emt 00:08:35]} 50. Rhg3
{[%clk 00:02:30]} {[%emt 00:02:47]} g5 {[%clk 00:07:13]} {[%emt 00:00:07]} 51.
Rf3 {[%clk 00:02:43]} {[%emt 00:00:17]} Kxh6 {[%clk 00:07:22]} {[%emt
00:00:21]} 52. Rh2+ {[%clk 00:02:50]} {[%emt 00:00:23]} Kg7 {[%clk 00:07:33]}
{[%emt 00:00:15]} 53. Rfh3 {[%clk 00:01:49]} {[%emt 00:01:35]} Re4 {[%clk
00:04:27]} {[%emt 00:03:36]} 54. Bd3 {[%clk 00:01:57]} {[%emt 00:00:21]} Rh4
{[%clk 00:03:22]} {[%emt 00:01:35]} 55. Rxh4 {[%clk 00:02:16]} {[%emt
00:00:11]} gxh4 {[%clk 00:03:51]} 56. Rg2+ {[%clk 00:02:24]} {[%emt 00:00:21]}
Kf8 {[%clk 00:03:49]} {[%emt 00:00:33]} 57. Rf2 {[%clk 00:01:14]} {[%emt
00:01:40]} Ke8 {[%clk 00:03:58]} {[%emt 00:00:21]} 58. Kg2 {[%clk 00:00:53]}
{[%emt 00:00:51]} Kd8 {[%clk 00:04:27]} {[%emt 00:00:02]} 59. Kh3 {[%clk
00:00:33]} {[%emt 00:00:49]} Kc7 {[%clk 00:04:50]} {[%emt 00:00:07]} 60. Rg2
{[%clk 00:00:37]} {[%emt 00:00:27]} Ra8 {[%clk 00:03:50]} {[%emt 00:01:30]} 61.
Bc4 {[%clk 00:01:00]} {[%emt 00:00:07]} Kb6 {[%clk 00:03:04]} {[%emt 00:01:16]}
62. Rg6 {[%clk 00:01:18]} {[%emt 00:00:12]} Rh8 {[%clk 00:00:34]} {[%emt
00:03:00]} 63. Rg4 {[%clk 00:01:10]} {[%emt 00:00:38]} Ka7 {[%clk 00:01:03]}
{[%emt 00:00:01]} 64. Rg6 {[%clk 00:01:14]} {[%emt 00:00:26]} Kb6 {[%clk
00:00:39]} {[%emt 00:00:54]} 65. Rg4 {[%clk 00:01:38]} {[%emt 00:00:05]} Ra8
{[%clk 00:00:39]} {[%emt 00:00:31]} 66. Rg6 {[%clk 00:01:44]} {[%emt 00:00:24]}
Rh8 {[%clk 00:00:33]} {[%emt 00:00:36]} 67. Rg4 {[%clk 00:02:12]} {[%emt
00:00:02]} Ka7 {[%clk 00:00:48]} {[%emt 00:00:16]} 68. Rg6 {[%clk 00:02:35]}
{[%emt 00:00:06]} Kb6 {[%clk 00:00:36]} {[%emt 00:00:42]} 69. Rg4 {[%clk
00:03:03]} {[%emt 00:00:02]} Rf8 {[%clk 00:00:53]} {[%emt 00:00:12]} 70. Rg6
{[%clk 00:03:24]} {[%emt 00:00:09]} Ka7 {[%clk 00:01:04]} {[%emt 00:00:19]} 71.
Rg4 {[%clk 00:03:42]} {[%emt 00:00:12]} Kb6 {[%clk 00:01:07]} {[%emt 00:00:28]}
72. Rg6 {[%clk 00:04:09]} {[%emt 00:00:03]} Rh8 {[%clk 00:00:45]} {[%emt
00:00:52]} 73. Rg4 {[%clk 00:04:37]} {[%emt 00:00:03]} Ka7 {[%clk 00:00:51]}
{[%emt 00:00:24]} 1/2-1/2

[Event "SS Manhem Chess Week GM and IM tournaments 2018"]
[Site "Molnlycke kulturhus, Biblioteksgatan 2, Molnlycke, Sweden"]
[Date "2018.08.13"]
[Round "4.10"]
[White "Mikalsen, Erlend"]
[Black "Antonsen, Mikkel"]
[Result "1/2-1/2"]
[TimeControl "90 minutes for 40 moves + 30 minutes for the rest of the game + 30 seconds per move from move one."]
[WhiteTitle "FM"]
[BlackTitle "IM"]
[WhiteFideId "1507338"]
[BlackFideId "1401378"]
[WhiteElo "2289"]
[BlackElo "2444"]

1. e4 {[%clk 01:30:58]} e5 {[%clk 01:30:56]} {[%emt 00:00:05]} 2. Nf3 {[%clk
01:31:23]} {[%emt 00:00:04]} Nc6 {[%clk 01:31:24]} {[%emt 00:00:04]} 3. Bb5
{[%clk 01:31:46]} {[%emt 00:00:06]} Nf6 {[%clk 01:31:51]} {[%emt 00:00:04]} 4.
O-O {[%clk 01:32:10]} {[%emt 00:00:05]} Nxe4 {[%clk 01:32:18]} {[%emt
00:00:04]} 5. d4 {[%clk 01:32:35]} {[%emt 00:00:04]} Nd6 {[%clk 01:32:28]}
{[%emt 00:00:20]} 6. Bxc6 {[%clk 01:32:59]} {[%emt 00:00:06]} dxc6 {[%clk
01:32:53]} {[%emt 00:00:05]} 7. dxe5 {[%clk 01:33:24]} {[%emt 00:00:04]} Nf5
{[%clk 01:33:19]} {[%emt 00:00:05]} 8. Qxd8+ {[%clk 01:33:45]} {[%emt
00:00:05]} Kxd8 {[%clk 01:33:47]} {[%emt 00:00:06]} 9. Nc3 {[%clk 01:34:09]}
{[%emt 00:00:06]} Be7 {[%clk 01:32:50]} {[%emt 00:01:27]} 10. h3 {[%clk
01:22:05]} {[%emt 00:12:33]} Nh4 {[%clk 01:32:38]} {[%emt 00:00:43]} 11. Nxh4
{[%clk 01:13:59]} {[%emt 00:08:34]} Bxh4 {[%clk 01:32:58]} {[%emt 00:00:11]} 12.
Be3 {[%clk 01:07:51]} {[%emt 00:06:37]} h5 {[%clk 01:28:16]} {[%emt 00:05:13]}
13. Ne2 {[%clk 01:03:49]} {[%emt 00:04:32]} Bd7 {[%clk 01:25:34]} {[%emt
00:03:12]} 14. Rad1 {[%clk 00:56:39]} {[%emt 00:07:39]} Kc8 {[%clk 01:25:48]}
{[%emt 00:00:17]} 15. Rd2 {[%clk 00:51:09]} {[%emt 00:06:00]} b6 {[%clk
01:26:04]} {[%emt 00:00:14]} 16. Rfd1 {[%clk 00:49:22]} {[%emt 00:02:16]} Rd8
{[%clk 01:21:21]} {[%emt 00:05:13]} 17. Ng3 {[%clk 00:40:04]} {[%emt 00:09:48]}
g6 {[%clk 01:19:53]} {[%emt 00:01:58]} 18. Ne4 {[%clk 00:37:43]} {[%emt
00:02:51]} Bf5 {[%clk 01:19:37]} {[%emt 00:00:46]} 19. Bg5 {[%clk 00:33:35]}
{[%emt 00:04:37]} Rxd2 {[%clk 01:19:51]} {[%emt 00:00:17]} 20. Rxd2 {[%clk
00:34:01]} {[%emt 00:00:04]} Bxe4 {[%clk 01:20:09]} {[%emt 00:00:13]} 21. Bxh4
{[%clk 00:34:20]} {[%emt 00:00:11]} 1/2-1/2

[Event "SS Manhem Chess Week GM and IM tournaments 2018"]
[Site "Molnlycke kulturhus, Biblioteksgatan 2, Molnlycke, Sweden"]
[Date "2018.08.14"]
[Round "5.2"]
[White "Christiansen, Johan-Sebastian"]
[Black "Schneider, Stefan"]
[Result "1-0"]
[TimeControl "90 minutes for 40 moves + 30 minutes for the rest of the game + 30 seconds per move from move one."]
[WhiteTitle "IM"]
[BlackTitle "IM"]
[WhiteFideId "1512668"]
[BlackFideId "1703013"]
[WhiteElo "2515"]
[BlackElo "2399"]

1. c4 {[%clk 01:30:55]} {[%emt 00:00:03]} e5 {[%clk 01:29:38]} {[%emt
00:01:23]} 2. Nc3 {[%clk 01:30:23]} {[%emt 00:01:03]} Nf6 {[%clk 01:28:33]}
{[%emt 00:01:34]} 3. g3 {[%clk 01:29:26]} {[%emt 00:01:27]} Nc6 {[%clk
01:27:36]} {[%emt 00:01:27]} 4. Bg2 {[%clk 01:28:58]} {[%emt 00:00:57]} Bc5
{[%clk 01:25:28]} {[%emt 00:02:39]} 5. Nf3 {[%clk 01:28:58]} {[%emt 00:00:30]}
d6 {[%clk 01:25:10]} {[%emt 00:00:48]} 6. O-O {[%clk 01:28:39]} {[%emt
00:00:49]} a6 {[%clk 01:22:58]} {[%emt 00:02:42]} 7. e3 {[%clk 01:28:45]}
{[%emt 00:00:24]} O-O {[%clk 01:20:42]} {[%emt 00:02:46]} 8. a3 {[%clk
01:24:01]} {[%emt 00:05:14]} Re8 {[%clk 01:15:19]} {[%emt 00:05:53]} 9. Qc2
{[%clk 01:22:21]} {[%emt 00:02:10]} Be6 {[%clk 00:56:52]} {[%emt 00:18:57]} 10.
d3 {[%clk 01:18:58]} {[%emt 00:03:53]} Qd7 {[%clk 00:48:19]} {[%emt 00:09:03]}
11. Ng5 {[%clk 01:00:35]} {[%emt 00:18:52]} Bf5 {[%clk 00:48:24]} {[%emt
00:00:25]} 12. b4 {[%clk 01:00:03]} {[%emt 00:01:02]} Bb6 {[%clk 00:40:29]}
{[%emt 00:08:25]} 13. Bb2 {[%clk 00:56:35]} {[%emt 00:03:59]} h6 {[%clk
00:38:07]} {[%emt 00:02:51]} 14. Nge4 {[%clk 00:49:09]} {[%emt 00:07:57]} Nh7
{[%clk 00:34:43]} {[%emt 00:03:54]} 15. Rac1 {[%clk 00:39:45]} {[%emt
00:09:53]} Ba7 {[%clk 00:31:51]} {[%emt 00:03:23]} 16. b5 {[%clk 00:34:11]}
{[%emt 00:06:04]} Ne7 {[%clk 00:27:55]} {[%emt 00:04:25]} 17. a4 {[%clk
00:31:20]} {[%emt 00:03:22]} Bh3 {[%clk 00:25:46]} {[%emt 00:02:39]} 18. Qb3
{[%clk 00:28:32]} {[%emt 00:03:19]} Bxg2 {[%clk 00:21:40]} {[%emt 00:04:35]} 19.
Kxg2 {[%clk 00:28:53]} {[%emt 00:00:09]} f5 {[%clk 00:15:08]} {[%emt 00:07:02]}
20. Nd2 {[%clk 00:28:28]} {[%emt 00:00:56]} Kh8 {[%clk 00:13:05]} {[%emt
00:02:33]} 21. Nf3 {[%clk 00:27:40]} {[%emt 00:01:18]} Rf8 {[%clk 00:10:50]}
{[%emt 00:02:45]} 22. Ne2 {[%clk 00:27:01]} {[%emt 00:01:10]} Ng6 {[%clk
00:10:29]} {[%emt 00:00:51]} 23. c5 {[%clk 00:20:19]} {[%emt 00:07:12]} Bxc5
{[%clk 00:06:47]} {[%emt 00:04:11]} 24. Bxe5 {[%clk 00:15:57]} {[%emt
00:04:53]} axb5 {[%clk 00:06:47]} {[%emt 00:00:31]} 25. Bd4 {[%clk 00:15:01]}
{[%emt 00:01:25]} bxa4 {[%clk 00:04:22]} {[%emt 00:02:55]} 26. Qxb7 {[%clk
00:15:30]} {[%emt 00:00:02]} Rfb8 {[%clk 00:04:22]} {[%emt 00:00:30]} 27. Qd5
{[%clk 00:15:58]} {[%emt 00:00:02]} c6 {[%clk 00:04:30]} {[%emt 00:00:23]} 28.
Qc4 {[%clk 00:15:29]} {[%emt 00:00:58]} Rb4 {[%clk 00:04:46]} {[%emt 00:00:08]}
29. Qc3 {[%clk 00:15:26]} {[%emt 00:00:39]} Rb3 {[%clk 00:05:15]} {[%emt
00:00:01]} 30. Qc2 {[%clk 00:14:17]} {[%emt 00:01:38]} Rb5 {[%clk 00:05:11]}
{[%emt 00:00:33]} 31. Ba1 {[%clk 00:13:51]} {[%emt 00:00:57]} Ng5 {[%clk
00:02:43]} {[%emt 00:02:58]} 32. Nxg5 {[%clk 00:12:52]} {[%emt 00:01:29]} hxg5
{[%clk 00:03:11]} {[%emt 00:00:01]} 33. d4 {[%clk 00:13:17]} {[%emt 00:00:05]}
Ba3 {[%clk 00:02:52]} {[%emt 00:00:50]} 34. Qxc6 {[%clk 00:12:50]} {[%emt
00:00:56]} Qxc6+ {[%clk 00:03:04]} {[%emt 00:00:18]} 35. Rxc6 {[%clk 00:13:19]}
{[%emt 00:00:01]} f4 {[%clk 00:01:03]} {[%emt 00:02:31]} 36. Nc3 {[%clk
00:13:07]} {[%emt 00:00:42]} Rf5 {[%clk 00:00:52]} {[%emt 00:00:40]} 37. e4
{[%clk 00:12:41]} {[%emt 00:00:56]} Rff8 {[%clk 00:00:39]} {[%emt 00:00:43]} 38.
Rb1 {[%clk 00:06:06]} {[%emt 00:07:05]} f3+ {[%clk 00:00:44]} {[%emt 00:00:26]}
39. Kh3 {[%clk 00:05:10]} {[%emt 00:01:25]} Rfc8 {[%clk 00:00:36]} {[%emt
00:00:38]} 40. Rxc8+ {[%clk 00:03:27]} {[%emt 00:02:13]} Rxc8 {[%clk 00:01:03]}
{[%emt 00:00:04]} 41. Nxa4 {[%clk 00:22:30]} {[%emt 00:11:27]} Rc4 {[%clk
00:20:56]} {[%emt 00:10:37]} 42. Nb6 {[%clk 00:21:03]} {[%emt 00:01:57]} Rc2
{[%clk 00:20:37]} {[%emt 00:00:49]} 43. Rb3 {[%clk 00:19:31]} {[%emt 00:02:03]}
Ra2 {[%clk 00:16:14]} {[%emt 00:04:53]} 44. Nc4 {[%clk 00:17:24]} {[%emt
00:02:36]} Bc1 {[%clk 00:16:03]} {[%emt 00:00:41]} 45. Bb2 {[%clk 00:17:02]}
{[%emt 00:00:52]} Ra4 {[%clk 00:12:44]} {[%emt 00:03:50]} 46. Nxd6 {[%clk
00:14:19]} {[%emt 00:03:12]} Bxb2 {[%clk 00:11:58]} {[%emt 00:01:15]} 47. Rxb2
{[%clk 00:14:44]} {[%emt 00:00:05]} Rxd4 {[%clk 00:11:49]} {[%emt 00:00:40]} 48.
Nf7+ {[%clk 00:15:02]} {[%emt 00:00:12]} Kh7 {[%clk 00:11:59]} {[%emt
00:00:20]} 49. Nxg5+ {[%clk 00:15:27]} {[%emt 00:00:05]} Kh6 {[%clk 00:12:25]}
{[%emt 00:00:04]} 50. Nxf3 {[%clk 00:13:20]} {[%emt 00:02:37]} Rxe4 {[%clk
00:11:13]} {[%emt 00:01:43]} 51. Rb6 {[%clk 00:13:42]} {[%emt 00:00:08]} Kh5
{[%clk 00:06:59]} {[%emt 00:04:44]} 52. g4+ {[%clk 00:13:50]} {[%emt 00:00:22]}
1-0

[Event "SS Manhem Chess Week GM and IM tournaments 2018"]
[Site "Molnlycke kulturhus, Biblioteksgatan 2, Molnlycke, Sweden"]
[Date "2018.08.14"]
[Round "5.3"]
[White "Vestby-Ellingsen, Mads"]
[Black "Rozentalis, Eduardas"]
[Result "1/2-1/2"]
[TimeControl "90 minutes for 40 moves + 30 minutes for the rest of the game + 30 seconds per move from move one."]
[WhiteTitle "FM"]
[BlackTitle "GM"]
[WhiteFideId "1520857"]
[BlackFideId "12800023"]
[WhiteElo "2409"]
[BlackElo "2503"]

1. d4 {[%clk 01:30:53]} {[%emt 00:00:04]} Nf6 {[%clk 01:30:51]} {[%emt
00:00:10]} 2. c4 {[%clk 01:31:14]} {[%emt 00:00:09]} e6 {[%clk 01:31:15]}
{[%emt 00:00:06]} 3. Nc3 {[%clk 01:31:34]} {[%emt 00:00:09]} Bb4 {[%clk
01:31:36]} {[%emt 00:00:09]} 4. e3 {[%clk 01:31:53]} {[%emt 00:00:09]} b6
{[%clk 01:30:02]} {[%emt 00:02:06]} 5. Nge2 {[%clk 01:31:39]} {[%emt 00:00:44]}
Ne4 {[%clk 01:28:45]} {[%emt 00:01:47]} 6. Qc2 {[%clk 01:26:15]} {[%emt
00:05:54]} Bb7 {[%clk 01:26:52]} {[%emt 00:02:23]} 7. f3 {[%clk 01:16:02]}
{[%emt 00:10:43]} Nxc3 {[%clk 01:24:16]} {[%emt 00:03:07]} 8. bxc3 {[%clk
01:16:03]} {[%emt 00:00:28]} Be7 {[%clk 01:24:12]} {[%emt 00:00:34]} 9. e4
{[%clk 01:04:56]} {[%emt 00:11:36]} d6 {[%clk 01:18:28]} {[%emt 00:06:15]} 10.
Ng3 {[%clk 01:03:21]} {[%emt 00:02:04]} O-O {[%clk 01:16:49]} {[%emt 00:02:09]}
11. Bd3 {[%clk 01:01:40]} {[%emt 00:02:10]} e5 {[%clk 01:15:37]} {[%emt
00:01:43]} 12. O-O {[%clk 00:50:18]} {[%emt 00:11:51]} Nc6 {[%clk 01:07:50]}
{[%emt 00:08:18]} 13. Be3 {[%clk 00:46:07]} {[%emt 00:04:41]} Bf6 {[%clk
01:03:35]} {[%emt 00:04:45]} 14. Qb2 {[%clk 00:40:22]} {[%emt 00:06:15]} g6
{[%clk 00:52:42]} {[%emt 00:11:24]} 15. f4 {[%clk 00:37:35]} {[%emt 00:03:16]}
Qe7 {[%clk 00:46:59]} {[%emt 00:06:14]} 16. fxe5 {[%clk 00:33:02]} {[%emt
00:05:03]} dxe5 {[%clk 00:46:32]} {[%emt 00:00:57]} 17. d5 {[%clk 00:32:58]}
{[%emt 00:00:33]} Na5 {[%clk 00:43:40]} {[%emt 00:03:24]} 18. c5 {[%clk
00:30:36]} {[%emt 00:02:52]} Bg5 {[%clk 00:42:46]} {[%emt 00:01:24]} 19. Bf2
{[%clk 00:30:09]} {[%emt 00:00:57]} Rad8 {[%clk 00:41:12]} {[%emt 00:02:04]} 20.
Rad1 {[%clk 00:28:44]} {[%emt 00:01:54]} h5 {[%clk 00:34:57]} {[%emt 00:06:46]}
21. Rfe1 {[%clk 00:22:23]} {[%emt 00:06:50]} Bc8 {[%clk 00:30:59]} {[%emt
00:04:28]} 22. d6 {[%clk 00:21:04]} {[%emt 00:01:49]} cxd6 {[%clk 00:25:41]}
{[%emt 00:05:48]} 23. cxb6 {[%clk 00:21:19]} {[%emt 00:00:14]} axb6 {[%clk
00:22:13]} {[%emt 00:04:00]} 24. Bxb6 {[%clk 00:17:18]} {[%emt 00:04:31]} Nb7
{[%clk 00:22:35]} {[%emt 00:00:08]} 25. Bxd8 {[%clk 00:14:57]} {[%emt
00:02:50]} Rxd8 {[%clk 00:22:23]} {[%emt 00:00:42]} 26. Nf1 {[%clk 00:13:03]}
{[%emt 00:02:23]} Nc5 {[%clk 00:20:51]} {[%emt 00:02:01]} 27. Ne3 {[%clk
00:11:31]} {[%emt 00:02:03]} Bb7 {[%clk 00:15:18]} {[%emt 00:06:04]} 28. Qb1
{[%clk 00:06:45]} {[%emt 00:05:15]} Qc7 {[%clk 00:12:41]} {[%emt 00:03:07]} 29.
Nd5 {[%clk 00:05:58]} {[%emt 00:01:17]} Bxd5 {[%clk 00:12:19]} {[%emt
00:00:53]} 30. exd5 {[%clk 00:06:19]} {[%emt 00:00:08]} Kg7 {[%clk 00:10:43]}
{[%emt 00:02:07]} 31. Qc2 {[%clk 00:04:15]} {[%emt 00:02:34]} Ra8 {[%clk
00:10:34]} {[%emt 00:00:39]} 32. Re2 {[%clk 00:02:56]} {[%emt 00:01:48]} Ra3
{[%clk 00:09:58]} {[%emt 00:01:06]} 33. Qb2 {[%clk 00:00:55]} {[%emt 00:02:31]}
Qa5 {[%clk 00:07:39]} {[%emt 00:02:49]} 34. Rc2 {[%clk 00:01:09]} {[%emt
00:00:16]} e4 {[%clk 00:04:59]} {[%emt 00:03:11]} 35. Bc4 {[%clk 00:00:33]}
{[%emt 00:01:06]} Bf6 {[%clk 00:03:21]} {[%emt 00:02:08]} 36. Qb4 {[%clk
00:00:46]} {[%emt 00:00:17]} Qa7 {[%clk 00:02:38]} {[%emt 00:01:13]} 37. Kh1
{[%clk 00:00:57]} {[%emt 00:00:19]} Ra4 {[%clk 00:02:19]} {[%emt 00:00:49]} 38.
Qb5 {[%clk 00:01:19]} {[%emt 00:00:07]} e3 {[%clk 00:01:50]} {[%emt 00:00:59]}
39. Bb3 {[%clk 00:00:32]} {[%emt 00:01:16]} Re4 {[%clk 00:01:23]} {[%emt
00:00:56]} 40. Qe2 {[%clk 00:00:35]} {[%emt 00:00:28]} Qe7 {[%clk 00:01:35]}
{[%emt 00:00:18]} 41. Rcc1 {[%clk 00:26:10]} {[%emt 00:04:54]} Be5 {[%clk
00:24:06]} {[%emt 00:08:00]} 42. g3 {[%clk 00:21:59]} {[%emt 00:04:41]} Qg5
{[%clk 00:19:56]} {[%emt 00:04:40]} 43. Rg1 {[%clk 00:15:30]} {[%emt 00:06:58]}
h4 {[%clk 00:08:45]} {[%emt 00:11:42]} 44. g4 {[%clk 00:10:31]} {[%emt
00:05:28]} Bf4 {[%clk 00:05:36]} {[%emt 00:03:40]} 45. Rcd1 {[%clk 00:06:07]}
{[%emt 00:04:54]} h3 {[%clk 00:05:44]} {[%emt 00:00:22]} 46. Bc2 {[%clk
00:04:56]} {[%emt 00:01:40]} Re7 {[%clk 00:06:05]} {[%emt 00:00:09]} 47. Rge1
{[%clk 00:03:40]} {[%emt 00:01:46]} Qe5 {[%clk 00:06:01]} {[%emt 00:00:33]} 48.
Rd4 {[%clk 00:02:42]} {[%emt 00:01:30]} Bg5 {[%clk 00:06:01]} {[%emt 00:00:29]}
49. Rb1 {[%clk 00:01:35]} {[%emt 00:01:37]} Rc7 {[%clk 00:05:32]} {[%emt
00:00:59]} 50. a4 {[%clk 00:01:13]} {[%emt 00:00:52]} Nd7 {[%clk 00:05:51]}
{[%emt 00:00:11]} 51. Qd3 {[%clk 00:01:05]} {[%emt 00:00:38]} Nf6 {[%clk
00:05:39]} {[%emt 00:00:42]} 52. a5 {[%clk 00:00:53]} {[%emt 00:00:42]} e2
{[%clk 00:04:05]} {[%emt 00:02:04]} 53. Re1 {[%clk 00:01:12]} {[%emt 00:00:11]}
Re7 {[%clk 00:04:26]} {[%emt 00:00:09]} 54. Qxh3 {[%clk 00:00:34]} {[%emt
00:01:07]} Nxd5 {[%clk 00:03:17]} {[%emt 00:01:40]} 55. Re4 {[%clk 00:00:32]}
{[%emt 00:00:32]} Qf6 {[%clk 00:03:30]} {[%emt 00:00:17]} 56. Rxe7 {[%clk
00:00:32]} {[%emt 00:00:31]} Qxe7 {[%clk 00:03:39]} {[%emt 00:00:21]} 1/2-1/2